{"text_format":"1","workbook":"xlsx","n_sheets":5,"sheets":["표지","교과목 입력 시트","교과목 시트","Sheet1","이수충족 및 기타 데이터 시트"],"not_rendered":{"charts":0,"images":0,"macros":1,"external_links":0,"defined_names":6,"comments":0,"pivot_tables":0},"unopened":[],"bounds":{"document_bytes":16777216,"sheet_cells":100000,"rows_first":2000,"rows_last":500,"rows_between":2000,"halvings":0,"cell_chars":16384,"cell_head_chars":4096},"cells_cut":0,"cells_raw":0,"read":"whole","date_system":"1900"}

{"sheet":"표지","index":0,"n_rows":38,"n_cols":9,"rows_kept":38,"cut":false,"hidden":false,"merged":[[4,2,18,8],[37,5,37,8],[34,6,34,8],[32,6,32,8],[33,6,33,8],[35,5,36,5],[19,4,20,7],[19,3,20,3],[19,8,20,8],[35,6,36,8]]}
[]
[]
[]
[]
[null,null,"반도체특성화대학사업단 \n2025년 2월 졸업 신청"]
[]
[]
[]
[]
[]
[]
[]
[]
[]
[]
[]
[]
[]
[]
[null,null,null,"(",{"$f":"IF($G$34=\"전기전자정보통신공학부\",\"반도체회로소자시스템\",IF($G$34=\"\",\"\",\"반도체소재부품장비\"))","v":""},null,null,null,")"]
[]
[]
[]
[]
[]
[]
[]
[]
[]
[]
[]
[]
[null,null,null,null,null,"학번"]
[null,null,null,null,null,"소속"]
[null,null,null,null,null,"전공"]
[null,null,null,null,null,"이름"]
[]
[null,null,null,null,null,"위와 같이 졸업을 신청합니다."]

{"sheet":"교과목 입력 시트","index":1,"n_rows":36,"n_cols":31,"rows_kept":36,"cut":false,"hidden":false,"merged":[[25,1,25,5],[0,14,0,16],[0,20,0,22],[0,17,0,19],[0,23,0,25],[7,1,24,1],[4,7,4,9],[1,1,4,2],[1,7,1,9],[3,7,3,9],[0,1,0,9],[2,7,2,9]]}
[null,null,null,null,null,null,null,null,null,null,null,null,null,null,"기계공학부 이수 가능 교과목",null,null,"메카트로닉스공학부 이수 가능 교과목",null,null,"에너지신소재화학공학부 이수 가능 교과목",null,null,"전기전자통신공학부 이수 가능 교과목",null,null,null,null,null,"타대학 이수 교과목"]
[null,"반도체융합과정\n이수기준",null,"① 융합전공과목 총 27학점 이수",null,null,"학번",{"$f":"IF(표지!G33=\"\", \"\", 표지!G33)","v":""},null,null,null,null,"개설학부선택",null,"학부","교과목",null,"학부","교과목",null,"학부","교과목",null,"학부","교과목",null,null,null,"학부","교과목"]
[null,null,null,"② 타학부 3학점",null,null,"이름",{"$f":"IF(표지!G36=\"\",\"\",표지!G36)","v":""},null,null,null,null,"전기전자정보통신공학부",null,"기계","반도체공정및실습","클릭","메카","반도체소자","클릭","에신화","반도체공정및실습","클릭","전전통","IoT응용프로그래밍","클릭",null,null,"충북대","반도체회로설계실무","클릭"]
[null,null,null,"③ 타대학 3학점",null,null,"소속",{"$f":"IF(표지!G34=\"기계공학부\",\"기계\",IF(표지!G34=\"메카트로닉스공학부\",\"메카\",IF(표지!G34=\"에너지신소재화학공학부\",\"에신화\",IF(표지!G34=\"전기전자정보통신공학부\",\"전전통\",\"\"))))","v":""},null,null,null,null,null,null,"기계","열전달","클릭","메카","회로이론및실습","클릭","에신화","재료과학Ⅰ","클릭","전전통","고급전자회로","클릭",null,null,"충북대","고급반도체소자","클릭"]
[null,null,null,"④ 필수 5과목 중 3과목 이수 필수",null,null,"전공",{"$f":"IF(표지!G35=\"\", \"\", 표지!G35)","v":""},null,null,null,null,null,null,"기계","전산유체역학","클릭","메카","디지털회로설계및실습","클릭","에신화","재료과학Ⅱ ","클릭","전전통","광전자공학","클릭",null,null,"충북대","고주파회로및시스템설계","클릭"]
[null,null,null,null,null,null,null,null,null,null,null,null,null,null,"기계","스마트재료응용","클릭","메카","인공지능개론","클릭","에신화","유기화학및실습Ⅱ ","클릭","전전통","디스플레이공학","클릭",null,null,"충북대","객체지향프로그래밍C++","클릭"]
[null,"구분","학부","교과목명","구분","교과목코드","학점",null,null,null,null,null,null,null,"기계","반도체패키징","클릭","메카","센서및계측공학","클릭","에신화","열물질전달및실습","클릭","전전통","디지털신호처리및실습","클릭",null,null,"충북대","차세대반도체소재","클릭"]
[null,"이수과목",null,null,{"$f":"IFERROR(VLOOKUP($I8,'교과목 시트'!$F$1:$I$101,4,FALSE),\"-\")","v":"-"},{"$f":"IFERROR(VLOOKUP($I8,'교과목 시트'!$F$1:$H$101,2,FALSE),\"-\")","v":"-"},{"$f":"IFERROR(VLOOKUP($I8,'교과목 시트'!$F$1:$H$101,3,FALSE),\"-\")","v":"-"},"지우기",{"$f":"C8&D8","v":""},null,null,null,null,null,"기계","반도체장비공학","클릭","메카","반도체공정및실습","클릭","에신화","에너지열역학","클릭","전전통","디지털통신및실습","클릭",null,null,"충북대","차세대반도체공정및실습","클릭"]
[null,null,null,null,{"$f":"IFERROR(VLOOKUP($I9,'교과목 시트'!$F$1:$I$101,4,FALSE),\"-\")","v":"-"},{"$f":"IFERROR(VLOOKUP($I9,'교과목 시트'!$F$1:$H$101,2,FALSE),\"-\")","v":"-"},{"$f":"IFERROR(VLOOKUP($I9,'교과목 시트'!$F$1:$H$101,3,FALSE),\"-\")","v":"-"},"지우기",{"$f":"C9&D9","v":""},null,null,null,null,null,"기계","PLC제어및응용","클릭","메카","반도체장비공학","클릭","에신화","반도체소자","클릭","전전통","디지틀공학","클릭",null,null,"충북대","고급 반도체 특강","클릭"]
[null,null,null,null,{"$f":"IFERROR(VLOOKUP($I10,'교과목 시트'!$F$1:$I$101,4,FALSE),\"-\")","v":"-"},{"$f":"IFERROR(VLOOKUP($I10,'교과목 시트'!$F$1:$H$101,2,FALSE),\"-\")","v":"-"},{"$f":"IFERROR(VLOOKUP($I10,'교과목 시트'!$F$1:$H$101,3,FALSE),\"-\")","v":"-"},"지우기","",null,null,null,null,null,"기계","정밀금형설계","클릭","메카","로봇기구설계및해석","클릭","에신화","반도체소재개론","클릭","전전통","머신러닝","클릭",null,null,"충북대","반도체 기계 재료","클릭"]
[null,null,null,null,{"$f":"IFERROR(VLOOKUP($I11,'교과목 시트'!$F$1:$I$101,4,FALSE),\"-\")","v":"-"},{"$f":"IFERROR(VLOOKUP($I11,'교과목 시트'!$F$1:$H$101,2,FALSE),\"-\")","v":"-"},{"$f":"IFERROR(VLOOKUP($I11,'교과목 시트'!$F$1:$H$101,3,FALSE),\"-\")","v":"-"},"지우기","",null,null,null,null,null,"기계","공기조화및에너지관리","클릭","메카","기계요소설계","클릭","에신화","재료물리학","클릭","전전통","무선통신","클릭",null,null,"충북대","차세대 반도체 물리","클릭"]
[null,null,null,null,{"$f":"IFERROR(VLOOKUP($I12,'교과목 시트'!$F$1:$I$101,4,FALSE),\"-\")","v":"-"},{"$f":"IFERROR(VLOOKUP($I12,'교과목 시트'!$F$1:$H$101,2,FALSE),\"-\")","v":"-"},{"$f":"IFERROR(VLOOKUP($I12,'교과목 시트'!$F$1:$H$101,3,FALSE),\"-\")","v":"-"},"지우기","",null,null,null,null,null,"기계","마이크로나노생산","클릭","메카","제조인공지능","클릭","에신화","결정구조학","클릭","전전통","반도체공정및실습","클릭",null,null,"충북대","나노 반도체 공정과 IoT 융합기술","클릭"]
[null,null,null,null,{"$f":"IFERROR(VLOOKUP($I13,'교과목 시트'!$F$1:$I$101,4,FALSE),\"-\")","v":"-"},{"$f":"IFERROR(VLOOKUP($I13,'교과목 시트'!$F$1:$H$101,2,FALSE),\"-\")","v":"-"},{"$f":"IFERROR(VLOOKUP($I13,'교과목 시트'!$F$1:$H$101,3,FALSE),\"-\")","v":"-"},"지우기","",null,null,null,null,null,"기계","기계학습","클릭","메카","반도체패키징","클릭","에신화","표면공학및실습","클릭","전전통","반도체소자","클릭",null,null,"충북대","디지털집적회로설계","클릭"]
[null,null,null,null,{"$f":"IFERROR(VLOOKUP($I14,'교과목 시트'!$F$1:$I$101,4,FALSE),\"-\")","v":"-"},{"$f":"IFERROR(VLOOKUP($I14,'교과목 시트'!$F$1:$H$101,2,FALSE),\"-\")","v":"-"},{"$f":"IFERROR(VLOOKUP($I14,'교과목 시트'!$F$1:$H$101,3,FALSE),\"-\")","v":"-"},"지우기","",null,null,null,null,null,"기계","반도체패키징","클릭","메카","반도체미세기계가공","클릭","에신화","에너지소재분석및실습","클릭","전전통","반도체장비공학","클릭",null,null,"충남대","반도체및에너지무기재료화학","클릭"]
[null,null,null,null,{"$f":"IFERROR(VLOOKUP($I15,'교과목 시트'!$F$1:$I$101,4,FALSE),\"-\")","v":"-"},{"$f":"IFERROR(VLOOKUP($I15,'교과목 시트'!$F$1:$H$101,2,FALSE),\"-\")","v":"-"},{"$f":"IFERROR(VLOOKUP($I15,'교과목 시트'!$F$1:$H$101,3,FALSE),\"-\")","v":"-"},"지우기","",null,null,null,null,null,null,null,null,"메카","디스플레이공학개론","클릭","에신화","전기화학","클릭","전전통","비젼시스템및실습","클릭",null,null,"충남대","반도체 산학특강1","클릭"]
[null,null,null,null,{"$f":"IFERROR(VLOOKUP($I16,'교과목 시트'!$F$1:$I$101,4,FALSE),\"-\")","v":"-"},{"$f":"IFERROR(VLOOKUP($I16,'교과목 시트'!$F$1:$H$101,2,FALSE),\"-\")","v":"-"},{"$f":"IFERROR(VLOOKUP($I16,'교과목 시트'!$F$1:$H$101,3,FALSE),\"-\")","v":"-"},"지우기","",null,null,null,null,null,null,null,null,"메카","스마트팩토리공정제어","클릭","에신화","유기반도체소자","클릭","전전통","사물인터넷및실습","클릭",null,null,"충남대","반도체 소재ㆍ공정 융합개론","클릭"]
[null,null,null,null,{"$f":"IFERROR(VLOOKUP($I17,'교과목 시트'!$F$1:$I$101,4,FALSE),\"-\")","v":"-"},{"$f":"IFERROR(VLOOKUP($I17,'교과목 시트'!$F$1:$H$101,2,FALSE),\"-\")","v":"-"},{"$f":"IFERROR(VLOOKUP($I17,'교과목 시트'!$F$1:$H$101,3,FALSE),\"-\")","v":"-"},"지우기","",null,null,null,null,null,null,null,null,"메카","열유체공학시뮬레이션및실습","클릭","에신화","에너지소자기초및실습","클릭","전전통","사이버-피지컬시스템","클릭",null,null,"충남대","반도체 산학특강2","클릭"]
[null,null,null,null,{"$f":"IFERROR(VLOOKUP($I18,'교과목 시트'!$F$1:$I$101,4,FALSE),\"-\")","v":"-"},{"$f":"IFERROR(VLOOKUP($I18,'교과목 시트'!$F$1:$H$101,2,FALSE),\"-\")","v":"-"},{"$f":"IFERROR(VLOOKUP($I18,'교과목 시트'!$F$1:$H$101,3,FALSE),\"-\")","v":"-"},"지우기","",null,null,null,null,null,null,null,null,"메카","영상처리","클릭","에신화","분리공정제어","클릭","전전통","임베디드응용및실습(IFC415)","클릭",null,null,"충남대","반도체 부품ㆍ장비 융합개론","클릭"]
[null,null,null,null,{"$f":"IFERROR(VLOOKUP($I19,'교과목 시트'!$F$1:$I$101,4,FALSE),\"-\")","v":"-"},{"$f":"IFERROR(VLOOKUP($I19,'교과목 시트'!$F$1:$H$101,2,FALSE),\"-\")","v":"-"},{"$f":"IFERROR(VLOOKUP($I19,'교과목 시트'!$F$1:$H$101,3,FALSE),\"-\")","v":"-"},"지우기","",null,null,null,null,null,null,null,null,"메카","마이크로프로세서및실습1","클릭","에신화","스마트소재","클릭","전전통","임베디드응용및실습(IFA193)","클릭"]
[null,null,null,null,{"$f":"IFERROR(VLOOKUP($I20,'교과목 시트'!$F$1:$I$101,4,FALSE),\"-\")","v":"-"},{"$f":"IFERROR(VLOOKUP($I20,'교과목 시트'!$F$1:$H$101,2,FALSE),\"-\")","v":"-"},{"$f":"IFERROR(VLOOKUP($I20,'교과목 시트'!$F$1:$H$101,3,FALSE),\"-\")","v":"-"},"지우기","",null,null,null,null,null,null,null,null,null,null,null,"에신화","센서소자및실습","클릭","전전통","자동화공학및실습","클릭"]
[null,null,null,null,{"$f":"IFERROR(VLOOKUP($I21,'교과목 시트'!$F$1:$I$101,4,FALSE),\"-\")","v":"-"},{"$f":"IFERROR(VLOOKUP($I21,'교과목 시트'!$F$1:$H$101,2,FALSE),\"-\")","v":"-"},{"$f":"IFERROR(VLOOKUP($I21,'교과목 시트'!$F$1:$H$101,3,FALSE),\"-\")","v":"-"},"지우기","",null,null,null,null,null,null,null,null,null,null,null,"에신화","플라즈마공학","클릭","전전통","전기기기2및실습","클릭"]
[null,null,null,null,{"$f":"IFERROR(VLOOKUP($I22,'교과목 시트'!$F$1:$I$101,4,FALSE),\"-\")","v":"-"},{"$f":"IFERROR(VLOOKUP($I22,'교과목 시트'!$F$1:$H$101,2,FALSE),\"-\")","v":"-"},{"$f":"IFERROR(VLOOKUP($I22,'교과목 시트'!$F$1:$H$101,3,FALSE),\"-\")","v":"-"},"지우기","",null,null,null,null,null,null,null,null,null,null,null,"에신화","반도체소재개론","클릭","전전통","전기신호처리","클릭"]
[null,null,null,null,{"$f":"IFERROR(VLOOKUP($I23,'교과목 시트'!$F$1:$I$101,4,FALSE),\"-\")","v":"-"},{"$f":"IFERROR(VLOOKUP($I23,'교과목 시트'!$F$1:$H$101,2,FALSE),\"-\")","v":"-"},{"$f":"IFERROR(VLOOKUP($I23,'교과목 시트'!$F$1:$H$101,3,FALSE),\"-\")","v":"-"},"지우기","",null,null,null,null,null,null,null,null,null,null,null,null,null,null,"전전통","전기자기학2","클릭"]
[null,null,null,null,{"$f":"IFERROR(VLOOKUP($I24,'교과목 시트'!$F$1:$I$101,4,FALSE),\"-\")","v":"-"},{"$f":"IFERROR(VLOOKUP($I24,'교과목 시트'!$F$1:$H$101,2,FALSE),\"-\")","v":"-"},{"$f":"IFERROR(VLOOKUP($I24,'교과목 시트'!$F$1:$H$101,3,FALSE),\"-\")","v":"-"},"지우기","",null,null,null,null,null,null,null,null,null,null,null,null,null,null,"전전통","전동기구동및실습","클릭"]
[null,null,null,null,{"$f":"IFERROR(VLOOKUP($I25,'교과목 시트'!$F$1:$I$101,4,FALSE),\"-\")","v":"-"},{"$f":"IFERROR(VLOOKUP($I25,'교과목 시트'!$F$1:$H$101,2,FALSE),\"-\")","v":"-"},{"$f":"IFERROR(VLOOKUP($I25,'교과목 시트'!$F$1:$H$101,3,FALSE),\"-\")","v":"-"},"지우기","",null,null,null,null,null,null,null,null,null,null,null,null,null,null,"전전통","전자회로응용및실습","클릭"]
[null,"총합계",null,null,null,null,{"$f":"SUM(G8:G25)","v":0},null,null,null,null," ",null,null,null,null,null,null,null,null,null,null,null,"전전통","정보및부호이론","클릭"]
[null,null,null,null,null,null,null,null,null,null,null,null,null,null,null,null,null,null,null,null,null,null,null,"전전통","제어공학","클릭"]
[null,null,null,null,null,null,null,null,null,null,null,null,null,null,null,null,null,null,null,null,null,null,null,"전전통","제어시스템설계","클릭"]
[null,null,null,null,null,null,null,null,null,null,null,null,null,null,null,null,null,null,null,null,null,null,null,"전전통","지능형로봇공학","클릭"]
[null,null,null,null,null,null,null,null,null,null,null,null,null,null,null,null,null,null,null,null,null,null,null,"전전통","컴퓨터비전및실습","클릭"]
[null,null,null,null,null,null,null,null,null,null,null,null,null,null,null,null,null,null,null,null,null,null,null,"전전통","통신신호처리및실습","클릭"]
[null,null,null,null,null,null,null,null,null,null,null,null,null,null,null,null,null,null,null,null,null,null,null,"전전통","회로망이론","클릭"]
[]
[]
[null,null,null,"최종 충족 여부"]
[null,null,null,{"$f":"IF(COUNTIF('이수충족 및 기타 데이터 시트'!$I$3:$L$3,\"통과\")>=4,\"최종충족\",\"미충족\")","v":"미충족"}]

{"sheet":"교과목 시트","index":2,"n_rows":97,"n_cols":9,"rows_kept":97,"cut":false,"hidden":true,"merged":[[0,0,0,1],[1,0,80,0],[1,1,47,1],[48,1,80,1],[81,0,96,1],[1,2,11,2],[12,2,28,2],[29,2,47,2],[51,2,80,2]]}
["구분",null,"학부","교과목명",null,null,"교과목코드","학점","구분"]
["한기대","소부장","기계","반도체공정및실습","기계",{"$f":"E2&D2","v":"기계반도체공정및실습"},"MES510",3,"필수"]
[null,null,null,"열전달","기계",{"$f":"E3&D3","v":"기계열전달"},"MEC431",3,"선택"]
[null,null,null,"전산유체역학","기계","기계전산유체역학","MED833",3,"선택"]
[null,null,null,"스마트재료응용","기계","기계스마트재료응용","MEE451",3,"선택"]
[null,null,null,"반도체패키징","기계","기계반도체패키징","MES530",3,"필수"]
[null,null,null,"반도체장비공학","기계","기계반도체장비공학","MES520",3,"필수"]
[null,null,null,"PLC제어및응용","기계","기계PLC제어및응용","MEH361",3,"선택"]
[null,null,null,"정밀금형설계","기계","기계정밀금형설계","MEF741",3,"선택"]
[null,null,null,"공기조화및에너지관리","기계","기계공기조화및에너지관리","MEE882",3,"선택"]
[null,null,null,"마이크로나노생산","기계","기계마이크로나노생산","MEE460",3,"선택"]
[null,null,null,"기계학습","기계","기계기계학습","MEF440",3,"선택"]
[null,null,"메카","반도체소자","메카","메카반도체소자","MTS110",3,"필수"]
[null,null,null,"회로이론및실습","메카","메카회로이론및실습","MTF294",3,"선택"]
[null,null,null,"디지털회로설계및실습","메카","메카디지털회로설계및실습","MCA285",3,"선택"]
[null,null,null,"인공지능개론","메카","메카인공지능개론","MTB570",3,"선택"]
[null,null,null,"센서및계측공학","메카","메카센서및계측공학","MCA658",3,"선택"]
[null,null,null,"반도체공정및실습","메카","메카반도체공정및실습","CCT348",3,"필수"]
[null,null,null,"반도체장비공학","메카","메카반도체장비공학","MTS100",3,"필수"]
[null,null,null,"로봇기구설계및해석","메카","메카로봇기구설계및해석","MTC620",3,"선택"]
[null,null,null,"기계요소설계","메카","메카기계요소설계","MTB419",3,"선택"]
[null,null,null,"제조인공지능","메카","메카제조인공지능","MTC630",3,"선택"]
[null,null,null,"반도체패키징","메카","메카반도체패키징","MTS120",3,"필수"]
[null,null,null,"반도체미세기계가공","메카","메카반도체미세기계가공","MTS420",3,"선택"]
[null,null,null,"디스플레이공학개론","메카","메카디스플레이공학개론","MTF281",3,"선택"]
[null,null,null,"스마트팩토리공정제어","메카","메카스마트팩토리공정제어","MTC780",3,"선택"]
[null,null,null,"열유체공학시뮬레이션및실습","메카","메카열유체공학시뮬레이션및실습","MTD836",3,"선택"]
[null,null,null,"영상처리","메카","메카영상처리","MTD431",3,"선택"]
[null,null,null,"마이크로프로세서및실습1","메카","메카마이크로프로세서및실습1","MTB428",3,"선택"]
[null,null,"에신화","반도체공정및실습","에신화","에신화반도체공정및실습","MSA911",3,"필수"]
[null,null,null,"재료과학Ⅰ","에신화","에신화재료과학Ⅰ","MSA251",3,"선택"]
[null,null,null,"재료과학Ⅱ ","에신화","에신화재료과학Ⅱ ","MSA312",3,"선택"]
[null,null,null,"유기화학및실습Ⅱ ","에신화","에신화유기화학및실습Ⅱ ","CHA151",3,"선택"]
[null,null,null,"열물질전달및실습","에신화","에신화열물질전달및실습","CHA712",3,"선택"]
[null,null,null,"에너지열역학","에신화","에신화에너지열역학","CHA702",3,"선택"]
[null,null,null,"반도체소자","에신화","에신화반도체소자","MSA765",3,"필수"]
[null,null,null,"반도체소재개론","에신화","에신화반도체소재개론","CHA500",3,"필수"]
[null,null,null,"재료물리학","에신화","에신화재료물리학","MSA981",3,"선택"]
[null,null,null,"결정구조학","에신화","에신화결정구조학","ENE311",3,"선택"]
[null,null,null,"표면공학및실습","에신화","에신화표면공학및실습","MSA631",3,"선택"]
[null,null,null,"에너지소재분석및실습","에신화","에신화에너지소재분석및실습","CHA601",3,"선택"]
[null,null,null,"전기화학","에신화","에신화전기화학","CHA630",3,"선택"]
[null,null,null,"유기반도체소자","에신화","에신화유기반도체소자","CHA510",3,"선택"]
[null,null,null,"에너지소자기초및실습","에신화","에신화에너지소자기초및실습","ENE332",3,"선택"]
[null,null,null,"분리공정제어","에신화","에신화분리공정제어","CHA476",3,"선택"]
[null,null,null,"스마트소재","에신화","에신화스마트소재","CHA243",3,"선택"]
[null,null,null,"센서소자및실습","에신화","에신화센서소자및실습","MSA786",3,"선택"]
[null,null,null,"플라즈마공학","에신화","에신화플라즈마공학","MSA960",3,"선택"]
[null,"회로소자","기계","반도체패키징","기계","기계반도체패키징","MES530",3,"필수"]
[null,null,"메카","반도체패키징","메카","메카반도체패키징","MTS120",3,"필수"]
[null,null,"에신화","반도체소재개론","에신화","에신화반도체소재개론","CHA500",3,"필수"]
[null,null,"전전통","IoT응용프로그래밍","전전통","전전통IoT응용프로그래밍","IFC422",3,"선택"]
[null,null,null,"고급전자회로","전전통","전전통고급전자회로","IFB270",3,"선택"]
[null,null,null,"광전자공학","전전통","전전통광전자공학","IFB440",3,"선택"]
[null,null,null,"디스플레이공학","전전통","전전통디스플레이공학","IFE570",3,"선택"]
[null,null,null,"디지털신호처리및실습","전전통","전전통디지털신호처리및실습","IFB296",4,"선택"]
[null,null,null,"디지털통신및실습","전전통","전전통디지털통신및실습","IFC251",3,"선택"]
[null,null,null,"디지틀공학","전전통","전전통디지틀공학","IFA131",3,"선택"]
[null,null,null,"머신러닝","전전통","전전통머신러닝","IFC550",3,"선택"]
[null,null,null,"무선통신","전전통","전전통무선통신","IFC357",3,"선택"]
[null,null,null,"반도체공정및실습","전전통","전전통반도체공정및실습","IFE551",3,"필수"]
[null,null,null,"반도체소자","전전통","전전통반도체소자","IFE240",3,"필수"]
[null,null,null,"반도체장비공학","전전통","전전통반도체장비공학","IFE610",3,"필수"]
[null,null,null,"비젼시스템및실습","전전통","전전통비젼시스템및실습","IFB365",3,"선택"]
[null,null,null,"사물인터넷및실습","전전통","전전통사물인터넷및실습","IFC486",3,"선택"]
[null,null,null,"사이버-피지컬시스템","전전통","전전통사이버-피지컬시스템","IFE510",3,"선택"]
[null,null,null,"임베디드응용및실습(IFC415)","전전통",{"$f":"E67&D67","v":"전전통임베디드응용및실습(IFC415)"},"IFC415",3,"선택"]
[null,null,null,"임베디드응용및실습(IFA193)","전전통","전전통임베디드응용및실습(IFA193)","IFA193",3,"선택"]
[null,null,null,"자동화공학및실습","전전통","전전통자동화공학및실습","IFA353",3,"선택"]
[null,null,null,"전기기기2및실습","전전통","전전통전기기기2및실습","IFA452",3,"선택"]
[null,null,null,"전기신호처리","전전통","전전통전기신호처리","IFA620",3,"선택"]
[null,null,null,"전기자기학2","전전통","전전통전기자기학2","IFA155",3,"선택"]
[null,null,null,"전동기구동및실습","전전통","전전통전동기구동및실습","IFA361",3,"선택"]
[null,null,null,"전자회로응용및실습","전전통","전전통전자회로응용및실습","IFA630",3,"선택"]
[null,null,null,"정보및부호이론","전전통","전전통정보및부호이론","IFC331",3,"선택"]
[null,null,null,"제어공학","전전통","전전통제어공학","IFB190",3,"선택"]
[null,null,null,"제어시스템설계","전전통","전전통제어시스템설계","IFA291",3,"선택"]
[null,null,null,"지능형로봇공학","전전통","전전통지능형로봇공학","IFE580",3,"선택"]
[null,null,null,"컴퓨터비전및실습","전전통","전전통컴퓨터비전및실습","IFC560",3,"선택"]
[null,null,null,"통신신호처리및실습","전전통","전전통통신신호처리및실습","IFC231",3,"선택"]
[null,null,null,"회로망이론","전전통","전전통회로망이론","IFB500",3,"선택"]
["타대학",null,"충북대","반도체회로설계실무","충북대","충북대반도체회로설계실무","S01100",3,"타대학"]
[null,null,"충북대","고급반도체소자","충북대","충북대고급반도체소자","S01110",3,"타대학"]
[null,null,"충북대","고주파회로및시스템설계","충북대","충북대고주파회로및시스템설계","S02131",3,"타대학"]
[null,null,"충북대","객체지향프로그래밍C++","충북대","충북대객체지향프로그래밍C++","S02132",3,"타대학"]
[null,null,"충북대","차세대반도체소재","충북대","충북대차세대반도체소재","S02133",3,"타대학"]
[null,null,"충북대","차세대반도체공정및실습","충북대","충북대차세대반도체공정및실습","S02134",3,"타대학"]
[null,null,"충북대","고급 반도체 특강","충북대","충북대고급 반도체 특강","S01170",3,"타대학"]
[null,null,"충북대","반도체 기계 재료","충북대","충북대반도체 기계 재료","S01190",3,"타대학"]
[null,null,"충북대","차세대 반도체 물리","충북대","충북대차세대 반도체 물리","S01200",3,"타대학"]
[null,null,"충북대","나노 반도체 공정과 IoT 융합기술","충북대","충북대나노 반도체 공정과 IoT 융합기술","S01210",3,"타대학"]
[null,null,"충북대","디지털집적회로설계","충북대","충북대디지털집적회로설계","S01220",3,"타대학"]
[null,null,"충북대","반도체 산학특강1","충남대","충남대반도체 산학특강1","S02100",3,"타대학"]
[null,null,"충북대","반도체 소재ㆍ공정 융합개론","충남대","충남대반도체 소재ㆍ공정 융합개론","S02110",3,"타대학"]
[null,null,"충북대","반도체 산학특강2","충남대","충남대반도체 산학특강2","S02120",3,"타대학"]
[null,null,"충남대","반도체 부품ㆍ장비 융합개론","충남대","충남대반도체 부품ㆍ장비 융합개론","S02130",3,"타대학"]
[null,null,"충남대","반도체및에너지무기재료화학","충남대","충남대반도체및에너지무기재료화학","S02135",3,"타대학"]

{"sheet":"Sheet1","index":3,"n_rows":98,"n_cols":3,"rows_kept":98,"cut":false,"hidden":true,"merged":[]}
["교과목명","교과목코드"]
["반도체공정및실습","MES510","기계반도체공정및실습"]
["열전달","MEC431","기계열전달"]
["전산유체역학","MED833","기계전산유체역학"]
["스마트재료응용","MEE451","기계스마트재료응용"]
["반도체패키징","MES530","기계반도체패키징"]
["반도체장비공학","MES520","기계반도체장비공학"]
["PLC제어및응용","MEH361","기계PLC제어및응용"]
["정밀금형설계","MEF741","기계정밀금형설계"]
["공기조화및에너지관리","MEE882","기계공기조화및에너지관리"]
["마이크로나노생산","MEE460","기계마이크로나노생산"]
["기계학습","MEF440","기계기계학습"]
["반도체소자","MTS110","메카반도체소자"]
["회로이론및실습","MTF294","메카회로이론및실습"]
["디지털회로설계및실습","MCA285","메카디지털회로설계및실습"]
["인공지능개론","MTB570","메카인공지능개론"]
["센서및계측공학","MCA658","메카센서및계측공학"]
["반도체공정및실습","CCT348","메카반도체공정및실습"]
["반도체장비공학","MTS100","메카반도체장비공학"]
["로봇기구설계및해석","MTC620","메카로봇기구설계및해석"]
["기계요소설계","MTB419","메카기계요소설계"]
["제조인공지능","MTC630","메카제조인공지능"]
["반도체패키징","MTS120","메카반도체패키징"]
["반도체미세기계가공","MTS420","메카반도체미세기계가공"]
["디스플레이공학개론","MTF281","메카디스플레이공학개론"]
["스마트팩토리공정제어","MTC719","메카스마트팩토리공정제어"]
["열유체공학시뮬레이션및실습","MTD836","메카열유체공학시뮬레이션및실습"]
["영상처리","MTD431","메카영상처리"]
["마이크로프로세서및실습1","MTB428","메카마이크로프로세서및실습1"]
["반도체공정및실습","MSA911","에신화반도체공정및실습"]
["재료과학Ⅰ","MSA251","에신화재료과학Ⅰ"]
["재료과학Ⅱ ","MSA312","에신화재료과학Ⅱ "]
["유기화학및실습Ⅱ ","CHA151","에신화유기화학및실습Ⅱ "]
["열물질전달및실습","CHA712","에신화열물질전달및실습"]
["에너지열역학","CHA702","에신화에너지열역학"]
["반도체소자","MSA765","에신화반도체소자"]
["반도체소재개론","CHA500","에신화반도체소재개론"]
["재료물리학","MSA980","에신화재료물리학"]
["결정구조학","ENE311","에신화결정구조학"]
["표면공학및실습","MSA631","에신화표면공학및실습"]
["에너지소재분석및실습","CHA601","에신화에너지소재분석및실습"]
["전기화학","CHA630","에신화전기화학"]
["유기반도체소자","CHA510","에신화유기반도체소자"]
["에너지소자기초및실습","ENE332","에신화에너지소자기초및실습"]
["분리공정제어","CHA476","에신화분리공정제어"]
["스마트소재","CHA243","에신화스마트소재"]
["센서소자및실습","MSA786","에신화센서소자및실습"]
["플라즈마공학","MSA960","에신화플라즈마공학"]
["반도체패키징","MES530","기계반도체패키징"]
["반도체패키징","MTS120","메카반도체패키징"]
["반도체소재개론","CHA500","에신화반도체소재개론"]
["IoT응용프로그래밍","IFC422","전전통IoT응용프로그래밍"]
["고급전자회로","IFB270","전전통고급전자회로"]
["광전자공학","IFB440","전전통광전자공학"]
["디스플레이공학","IFE570","전전통디스플레이공학"]
["디지털신호처리및실습","IFB296","전전통디지털신호처리및실습"]
["디지털통신및실습","IFC251","전전통디지털통신및실습"]
["디지틀공학","IFA131","전전통디지틀공학"]
["머신러닝","IFC550","전전통머신러닝"]
["무선통신","IFC354","전전통무선통신"]
["반도체공정및실습","IFE551","전전통반도체공정및실습"]
["반도체소자","MTS110","전전통반도체소자"]
["반도체장비공학","IFE610","전전통반도체장비공학"]
["비젼시스템및실습","IFB365","전전통비젼시스템및실습"]
["사물인터넷및실습","IFC486","전전통사물인터넷및실습"]
["사이버-피지컬시스템","IFE510","전전통사이버-피지컬시스템"]
["임베디드응용및실습","IFC415","전전통임베디드응용및실습"]
["자동화공학및실습","IFA353","전전통자동화공학및실습"]
["전기기기2및실습","IFA452","전전통전기기기2및실습"]
["전기신호처리","IFA620","전전통전기신호처리"]
["전기자기학2","IFA155","전전통전기자기학2"]
["전동기구동및실습","IFA361","전전통전동기구동및실습"]
["전자회로응용및실습","IFA361","전전통전자회로응용및실습"]
["정보및부호이론","IFC331","전전통정보및부호이론"]
["제어공학","IFB190","전전통제어공학"]
["제어시스템설계","IFA291","전전통제어시스템설계"]
["지능형로봇공학","IFE580","전전통지능형로봇공학"]
["컴퓨터비전및실습","IFC560","전전통컴퓨터비전및실습"]
["통신신호처리및실습","IFC231","전전통통신신호처리및실습"]
["회로망이론","IFB500","전전통회로망이론"]
["반도체회로설계실무","S01100","충북대반도체회로설계실무"]
["고급반도체소자","S01110","충북대고급반도체소자"]
["AI시스템 반도체설계","S01120","충북대AI시스템 반도체설계"]
["무선통신시스템","S01130","충북대무선통신시스템"]
["전력반도체시스템 응용","S01140","충북대전력반도체시스템 응용"]
["차세대반도체 재료","S01150","충북대차세대반도체 재료"]
["반도체 화공재료","S01160","충북대반도체 화공재료"]
["고급 반도체 특강","S01170","충북대고급 반도체 특강"]
["CAE 분석 개론","S01180","충북대CAE 분석 개론"]
["반도체 기계 재료","S01190","충북대반도체 기계 재료"]
["차세대 반도체 물리","S01200","충북대차세대 반도체 물리"]
["나노 반도체 공정과 IoT 융합기술","S01210","충북대나노 반도체 공정과 IoT 융합기술"]
["디지털집적회로설계","S01220","충북대디지털집적회로설계"]
["딥러닝이론및실습","S01230","충북대딥러닝이론및실습"]
["반도체 산학특강1","S02100","충남대반도체 산학특강1"]
["반도체 소재ㆍ공정 융합개론","S02110","충남대반도체 소재ㆍ공정 융합개론"]
["반도체 산학특강2","S02120","충남대반도체 산학특강2"]
["반도체 부품ㆍ장비 융합개론","S02130","충남대반도체 부품ㆍ장비 융합개론"]

{"sheet":"이수충족 및 기타 데이터 시트","index":4,"n_rows":5,"n_cols":12,"rows_kept":5,"cut":false,"hidden":true,"merged":[]}
["학부","기계세부","메카세부","전전통세부","에신화세부"]
["기계공학부","친환경자동차·에너지","생산","전기","에너지신소재공학",null,null,null,"타대학","타학부","총학점","필수과목"]
["메카트로닉스공학부","시스템설계제조","제어","전자","화학생명공학",null,null,null,{"$f":"IF(OR(COUNTIF('교과목 입력 시트'!C8:C25, \"충남대\") > 0, COUNTIF('교과목 입력 시트'!C8:C25, \"충북대\") > 0), \"통과\", \"미통과\")","v":"미통과"},{"$f":"IF(\n    OR(\n        AND(\n            '교과목 입력 시트'!H4=\"기계\",\n            COUNTIF('교과목 입력 시트'!C8:C25, \"에신화\") +\n            COUNTIF('교과목 입력 시트'!C8:C25, \"메카\") +\n            COUNTIF('교과목 입력 시트'!C8:C25, \"전전통\") > 0\n        ),\n        AND(\n            '교과목 입력 시트'!H4=\"메카\",\n            COUNTIF('교과목 입력 시트'!C8:C25, \"기계\") +\n            COUNTIF('교과목 입력 시트'!C8:C25, \"에신화\") +\n            COUNTIF('교과목 입력 시트'!C8:C25, \"전전통\") > 0\n        ),\n        AND(\n            '교과목 입력 시트'!H4=\"에신화\",\n            COUNTIF('교과목 입력 시트'!C8:C25, \"기계\") +\n            COUNTIF('교과목 입력 시트'!C8:C25, \"메카\") +\n            COUNTIF('교과목 입력 시트'!C8:C25, \"전전통\") > 0\n        ),\n        AND(\n            '교과목 입력 시트'!H4=\"전전통\",\n            COUNTIF('교과목 입력 시트'!C8:C25, \"기계\") +\n            COUNTIF('교과목 입력 시트'!C8:C25, \"메카\") +\n            COUNTIF('교과목 입력 시트'!C8:C25, \"에신화\") > 0\n        )\n    ),\n    \"통과\",\n    \"미통과\"\n)","v":"미통과"},{"$f":"IF('교과목 입력 시트'!G26>=27,\"통과\",\"미통과\")","v":"미통과"},{"$f":"IF(COUNTIF('교과목 입력 시트'!$E$8:$E$25, \"*필수*\") >= 3, \"통과\", \"미통과\")","v":"미통과"}]
["에너지신소재화학공학부","스마트모빌리티","디지털","정보통신",null,null,null,null,{"$f":"IF(COUNTIF('교과목 입력 시트'!E8:E25,\"타대학\")>=1,\"이수 충족\",\"부족\")","v":"부족"},{"$f":"IF($J$3=\"통과\",\"이수 충족\",\"부족\")","v":"부족"},{"$f":"IF('교과목 입력 시트'!G26 >= 27, \"이수 충족\", 27-'교과목 입력 시트'!G26 & \"학점 부족\")","v":"27학점 부족"},{"$f":"IF(COUNTIF('교과목 입력 시트'!$E$8:$E$25, \"필수\") = 0,\n    \"3과목 부족\",\n    IF(COUNTIF('교과목 입력 시트'!$E$8:$E$25, \"필수\") = 1,\n        \"2과목 부족\",\n        IF(COUNTIF('교과목 입력 시트'!$E$8:$E$25, \"필수\") = 2,\n            \"1과목 부족\",\n            \"이수 충족\"\n        )\n    )\n)","v":"3과목 부족"}]
["전기전자정보통신공학부"]